Workbook

Sheet Dashboard
B1: VILLAGE OF SARANAC - PERFORMANCE DASHBOARD | N1: Hide columns H & I before publishing. Also hide the underlying data tab
C2: =+'Underlying data'!B1 -> 2008 | D2: =+'Underlying data'!C1 -> 2009 | E2: =+'Underlying data'!D1 -> 2010 | F2: =+'Underlying data'!E1 -> 2011 | G2: =+'Underlying data'!F1 -> 2012 | H2: =+'Underlying data'!G1 -> 2013 | I2: 2016 | J2: 2016 | K2: 2017 | L2: Trend | M2: Performance | N2: 0.01 | O2: threshhold for Good or Bad change
B3: Fiscal Stability | N3: Is an increase "Good, Bad, or Neutral?
B4: =+'Underlying data'!A4 -> Annual GF Expenditures per capita | C4: =+'Underlying data'!B6 -> 333.3333333 | D4: =+'Underlying data'!C6 -> 351.3513514 | E4: =+'Underlying data'!D6 -> 588.3471698 | F4: =+'Underlying data'!E6 -> 833.5079245 | G4: =+'Underlying data'!F6 -> 568.4446038 | H4: =+'Underlying data'!G6 -> 620.3026415 | I4: =+'Underlying data'!I6 -> 585.9079245 | J4: =+'Underlying data'!J6 -> 585.5766038 | K4: =+'Underlying data'!K6 -> 532.5577358 | L4: =+K4/J4-1 -> -0.09054130166 | M4: Positive | N4: Bad
B5: =+'Underlying data'!A7 -> Fund Balance as % of Annual GF Expenditures | C5: =+'Underlying data'!B9 -> 0.2 | D5: =+'Underlying data'!C9 -> 0.2115384615 | E5: =+'Underlying data'!D9 -> 1.242812612 | F5: =+'Underlying data'!E9 -> 0.5179093044 | G5: =+'Underlying data'!F9 -> 0.8198897196 | H5: =+'Underlying data'!G9 -> 0.5952821569 | I5: =+'Underlying data'!I9 -> 0.5125320741 | J5: =+'Underlying data'!J9 -> 0.6449646792 | K5: =+'Underlying data'!K9 -> 0.8091063561 | L5: =+K5/J5-1 -> 0.2544971564 | M5: Positive | N5: Good
B6: =+'Underlying data'!#REF! ->  | C6: =+'Underlying data'!#REF! ->  | D6: =+'Underlying data'!#REF! ->  | E6: =+'Underlying data'!#REF! ->  | F6: =+'Underlying data'!#REF! ->  | G6: =+'Underlying data'!#REF! ->  | L6: =+I6/H6-1 ->  | M6: =IF(ABS(F6/E6-1)<$N$2,"Neutral",IF(N6="Good",IF(F6>E6,"Positive","Negative"),IF(N6="Bad",IF(F6<E6,"Positive","Negative"),"Neutral"))) ->  | N6: Bad
B7: =+'Underlying data'!#REF! ->  | C7: =+'Underlying data'!#REF! ->  | D7: =+'Underlying data'!#REF! ->  | E7: =+'Underlying data'!#REF! ->  | F7: =+'Underlying data'!#REF! ->  | G7: =+'Underlying data'!#REF! ->  | N7: Bad
A8: 1 | B8: Unfunded Pension & Retiree health care liability, as a % of annual GF revenue | E8: N/A | F8: N/A | G8: N/A | H8: N/A | I8: N/A | J8: N/A | K8: N/A | L8: N/A | M8: N/A
A9: 2 | B9: Debt burden per capita | E9: N/A | F9: N/A | G9: N/A | H9: N/A | I9: N/A | J9: N/A | K9: N/A | L9: N/A | M9: N/A
B10: =+'Underlying data'!A10 -> Percentage of road funding provided by the General Fund | C10: =+'Underlying data'!B19 -> 0.1896551724 | D10: =+'Underlying data'!C19 -> 0.212585034 | E10: =+'Underlying data'!D19 -> 0.3350368587 | F10: =+'Underlying data'!E19 -> 0.384693935 | G10: =+'Underlying data'!F19 -> 0.3456213958 | H10: =+'Underlying data'!G19 -> 0.6349560855 | I10: =+'Underlying data'!I19 -> 0.2301991952 | J10: =+'Underlying data'!J19 -> 0.05358410695 | K10: =+'Underlying data'!K19 -> 0.09763555463 | L10: =+K10/J10-1 -> 0.8220991295 | M10: Negative | N10: Neutral
B11: =+'Underlying data'!#REF! ->  | C11: =+'Underlying data'!#REF! ->  | D11: =+'Underlying data'!#REF! ->  | E11: =+'Underlying data'!#REF! ->  | F11: =+'Underlying data'!#REF! ->  | G11: =+'Underlying data'!#REF! ->  | H11: =+'Underlying data'!#REF! ->  | I11: =+'Underlying data'!#REF! ->  | J11: =+'Underlying data'!#REF! ->  | L11: =+K11/J11-1 ->  | N11: Bad
B12: =+'Underlying data'!A20 -> Number of services delivered via cooperative venture | C12: =+'Underlying data'!B32 -> 2 | D12: =+'Underlying data'!C32 -> 1 | E12: =+'Underlying data'!D32 -> 6 | F12: =+'Underlying data'!E32 -> 6 | G12: =+'Underlying data'!F32 -> 6 | H12: =+'Underlying data'!G32 -> 6 | I12: =+'Underlying data'!I32 -> 6 | J12: =+'Underlying data'!J32 -> 6 | K12: =+'Underlying data'!K32 -> 6 | L12: 0 | M12: Neutral | N12: Good
B13: Economic Strength
B14: =+'Underlying data'!A34 -> % of community with access to high speed broadband | C14: =+'Underlying data'!B37 -> 0.9193548387 | D14: =+'Underlying data'!C37 -> 0.9193548387 | E14: =+'Underlying data'!D37 -> 1 | F14: =+'Underlying data'!E37 -> 1 | G14: =+'Underlying data'!F37 -> 1 | H14: =+'Underlying data'!G37 -> 1 | I14: =+'Underlying data'!I37 -> 1 | J14: =+'Underlying data'!J37 -> 1 | K14: =+'Underlying data'!K37 -> 1 | L14: =+K14/J14-1 -> 0 | M14: =IF(ABS(F14/E14-1)<$N$2,"Neutral",IF(N14="Good",IF(F14>E14,"Positive","Negative"),IF(N14="Bad",IF(F14<E14,"Positive","Negative"),"Neutral"))) -> Neutral | N14: Good
B15: =+'Underlying data'!A39 -> % of community age 25+ with Bachelor's Degree or higher. | C15: =+'Underlying data'!B42 -> 0.7263436123 | D15: =+'Underlying data'!C42 -> 0.7263436123 | E15: =+'Underlying data'!D42 -> 0.1405472637 | F15: =+'Underlying data'!E42 -> 0.1405472637 | G15: =+'Underlying data'!F42 -> 0.1405472637 | H15: =+'Underlying data'!G42 -> 0.1405472637 | I15: =+'Underlying data'!I42 -> 0.1405472637 | J15: =+'Underlying data'!J42 -> 0.1405472637 | K15: =+'Underlying data'!K42 -> 0.1405472637 | L15: =+K15/J15-1 -> 0 | M15: =IF(ABS(F15/E15-1)<$N$2,"Neutral",IF(N15="Good",IF(F15>E15,"Positive","Negative"),IF(N15="Bad",IF(F15<E15,"Positive","Negative"),"Neutral"))) -> Neutral | N15: Good
B16: =+'Underlying data'!A44 -> Average age of critical infrastructure (years) | C16: =+'Underlying data'!B84 -> 18.85714286 | D16: =+'Underlying data'!C84 -> 18.53333333 | E16: =+'Underlying data'!D84 -> 0 | F16: =+'Underlying data'!E84 -> 0 | G16: =+'Underlying data'!F84 -> 0 | H16: =+'Underlying data'!G84 -> 0 | I16: =+'Underlying data'!H84 -> 0 | J16: =+'Underlying data'!I84 -> 0 | M16: =IF(ABS(F16/E16-1)<$N$2,"Neutral",IF(N16="Good",IF(F16>E16,"Positive","Negative"),IF(N16="Bad",IF(F16<E16,"Positive","Negative"),"Neutral"))) ->  | N16: Bad
B17: Public Safety
B18: =+'Underlying data'!A87 -> Violent crimes per thousand | C18: =+'Underlying data'!B89 -> 16 | D18: =+'Underlying data'!C89 -> 16.89189189 | E18: =+'Underlying data'!D89 -> 4.528301887 | F18: =+'Underlying data'!E89 -> 1.509433962 | G18: =+'Underlying data'!F89 -> 1.509433962 | H18: =+'Underlying data'!G89 -> 2.264150943 | I18: =+'Underlying data'!I89 -> 0 | J18: =+'Underlying data'!J89 -> 2.264150943 | K18: =+'Underlying data'!K89 -> 0.7547169811 | L18: -0.6666666667 | M18: Positive | N18: Bad
B19: =+'Underlying data'!A91 -> Property crimes per thousand | C19: =+'Underlying data'!B93 -> 56 | D19: =+'Underlying data'!C93 -> 57.43243243 | E19: =+'Underlying data'!D93 -> 19.62264151 | F19: =+'Underlying data'!E93 -> 30.18867925 | G19: =+'Underlying data'!F93 -> 13.58490566 | H19: =+'Underlying data'!G93 -> 12.0754717 | I19: =+'Underlying data'!I93 -> 10.56603774 | J19: =+'Underlying data'!J93 -> 3.773584906 | K19: =+'Underlying data'!K93 -> 4.528301887 | L19: 0.2 | M19: Negative | N19: Bad
B20: =+'Underlying data'!A95 -> Traffic injuries or fatalities | C20: =+'Underlying data'!B96 -> 850 | D20: =+'Underlying data'!C96 -> 875 | E20: =+'Underlying data'!D96 -> 7 | F20: =+'Underlying data'!E96 -> 9 | G20: =+'Underlying data'!F96 -> 8 | H20: =+'Underlying data'!G96 -> 7 | I20: =+'Underlying data'!I96 -> 7 | J20: =+'Underlying data'!J96 -> 10 | K20: =+'Underlying data'!K96 -> 3 | L20: -0.7 | M20: Positive | N20: Bad
B21: Quality of Life
B22: =+'Underlying data'!A99 -> Miles of sidewalks and non-motorized paths/trails as a factor of total miles of local/major road streets | C22: =+'Underlying data'!B102 -> 0.2142857143 | D22: =+'Underlying data'!C102 -> 0.2428571429 | E22: =+'Underlying data'!D102 -> 1.211305518 | F22: =+'Underlying data'!E102 -> 1.211305518 | G22: =+'Underlying data'!F102 -> 1.211305518 | H22: =+'Underlying data'!G102 -> 1.211305518 | I22: =+'Underlying data'!I102 -> 1.393001346 | J22: =+'Underlying data'!J102 -> 1.393001346 | K22: =+'Underlying data'!K102 -> 1.393001346 | L22: =+K22/J22-1 -> 0 | M22: Neutral | N22: Good
B23: =+'Underlying data'!A104 -> Percent of GF Expenditures Committed to Arts, Culture and Recreation | C23: =+'Underlying data'!B106 -> 0.09 | D23: =+'Underlying data'!C106 -> 0.08538461538 | E23: =+'Underlying data'!D106 -> 0.07110292986 | F23: =+'Underlying data'!E106 -> 0.02844988854 | G23: =+'Underlying data'!F106 -> 0.05670953018 | H23: =+'Underlying data'!G106 -> 0.05891707152 | I23: =+'Underlying data'!I106 -> 0.05529879123 | J23: =+'Underlying data'!J106 -> 0.07133623495 | K23: =+'Underlying data'!K106 -> 0.07500719206 | L23: =+K23/J23-1 -> 0.05145992235 | M23: Positive | N23: Neutral
B24: =+'Underlying data'!A108 -> Acres of park per thousand residents | C24: =+'Underlying data'!B110 -> 2.4 | D24: =+'Underlying data'!C110 -> 2.432432432 | E24: =+'Underlying data'!D110 -> 61.50943396 | F24: =+'Underlying data'!E110 -> 61.50943396 | G24: =+'Underlying data'!F110 -> 61.50943396 | H24: =+'Underlying data'!G110 -> 61.50943396 | I24: =+'Underlying data'!I110 -> 61.50943396 | J24: =+'Underlying data'!J110 -> 61.50943396 | K24: =+'Underlying data'!K110 -> 61.50943396 | L24: 0 | M24: =IF(ABS(F24/E24-1)<$N$2,"Neutral",IF(N24="Good",IF(F24>E24,"Positive","Negative"),IF(N24="Bad",IF(F24<E24,"Positive","Negative"),"Neutral"))) -> Neutral | N24: Good
B25: =+'Underlying data'!A112 -> Percent of community being provided with curbside recycling | C25: =+'Underlying data'!B114 -> 0.9533333333 | D25: =+'Underlying data'!C114 -> 0.9662162162 | E25: =+'Underlying data'!D114 -> 1 | F25: =+'Underlying data'!E114 -> 1 | G25: =+'Underlying data'!F114 -> 1 | H25: =+'Underlying data'!G114 -> 1 | I25: =+'Underlying data'!I114 -> 1 | J25: =+'Underlying data'!J114 -> 1 | K25: =+'Underlying data'!K114 -> 1 | L25: 0 | M25: =IF(ABS(F25/E25-1)<$N$2,"Neutral",IF(N25="Good",IF(F25>E25,"Positive","Negative"),IF(N25="Bad",IF(F25<E25,"Positive","Negative"),"Neutral"))) -> Neutral | N25: Good
A27: 1 | B27: The Village of Saranac does not offer a pension plan or retiree health care and therefore does not have any
B28: unfunded liabilities.
A29: 2 | B29: The Village of Sarnanac Governmental Funds are debt free. The Water/Sewer Fund, which is not included
B30: in this report, has an outstanding Bond with a principal balance of $755,000 at the end of the 2017 FY.

Sheet Underlying data (hidden)
B1: 2008 | C1: 2009 | D1: 2010 | E1: 2011 | F1: 2012 | G1: 2013 | H1: 2014 | I1: 2015 | J1: 2016 | K1: 2017 | L1: Comments
A2: Population | B2: 7500 | C2: 7400 | D2: 1325 | E2: 1325 | F2: 1325 | G2: 1325 | H2: 1325 | I2: 1325 | J2: 1325 | K2: 1325 | L2: We suggest you "Hide" this tab before publishing the Excel file to your web site.
A4: Annual GF Expenditures per capita | L4: Alternatively, you might consider using All Governmental funds' spending per capita
A5: General Fund Expenditures | B5: 2500000 | C5: 2600000 | D5: =852460-72900 -> 779560 | E5: =1530662-218500-207764 -> 1104398 | F5: 753189.1 | G5: 821901 | H5: 745529.36 | I5: 776328 | J5: 775889 | K5: =724639-19000 -> 705639
A6: Expenditures per capita | B6: =+B5/B2 -> 333.3333333 | C6: 351.3513514 | D6: 588.3471698 | E6: 833.5079245 | F6: 568.4446038 | G6: 620.3026415 | H6: 562.6636679 | I6: 585.9079245 | J6: 585.5766038 | K6: 532.5577358
A7: Fund Balance as % of Annual GF Expenditures | L7: Alternatively, you couild use "Unreserved" Fund Balance.
A8: Fund Balance | B8: 500000 | C8: 550000 | D8: 968847 | E8: 571978 | F8: 617532 | G8: 489263 | H8: 448169 | I8: 397893 | J8: 500421 | K8: 570937
A9: Fund Balance as % of Annual GF Expenditures | B9: =+B8/B5 -> 0.2 | C9: 0.2115384615 | D9: 1.242812612 | E9: 0.5179093044 | F9: 0.8198897196 | G9: 0.5952821569 | H9: 0.6011419859 | I9: 0.5125320741 | J9: 0.6449646792 | K9: 0.8091063561
A10: Percentage of road funding provided by the General Fund
A11: Road expenditures:
A12: Major streets fund | B12: 320000 | C12: 324000 | D12: 125046 | E12: 490384 | F12: 108330.83 | G12: 281076 | H12: 111392.92 | I12: 198685.27 | J12: 124791.22 | K12: 116573.67
A13: Local streets fund | B13: 260000 | C13: 264000 | D13: 92542 | E13: 77600 | F13: 130369.67 | G13: 103990 | H13: 185752.24 | I13: 72818.72 | J13: 61831.28 | K13: 78027.57
A14: Total road expenditures | B14: =SUM(B12:B13) -> 580000 | C14: 588000 | D14: 217588 | E14: 567984 | F14: 238700.5 | G14: 385066 | H14: 297145.16 | I14: 271503.99 | J14: 186622.5 | K14: 194601.24
A15: Transfers from the General Fund into:
A16: Major streets fund | D16: 30000 | E16: 189000 | F16: 0 | G16: 187000 | H16: 0 | I16: 45000 | J16: 6000 | K16: 0
A17: Local streets fund | B17: 110000 | C17: 125000 | D17: 42900 | E17: 29500 | F17: 82500 | G17: 57500 | H17: 140000 | I17: 17500 | J17: 4000 | K17: 19000
A18: Total General Fund funding | B18: =SUM(B15:B17) -> 110000 | C18: 125000 | D18: 72900 | E18: 218500 | F18: 82500 | G18: 244500 | H18: 140000 | I18: 62500 | J18: 10000 | K18: 19000
A19: Ratio of road funding to total GF expenditures | B19: =+B18/B14 -> 0.1896551724 | C19: 0.212585034 | D19: 0.3350368587 | E19: 0.384693935 | F19: 0.3456213958 | G19: 0.6349560855 | H19: 0.4711501947 | I19: 0.2301991952 | J19: 0.05358410695 | K19: 0.09763555463
A20: Number of services delivered via cooperative venture | D20: 6 | E20: 6 | F20: 6 | G20: 6 | H20: 6 | I20: 6 | J20: 6 | K20: 6
A21: List the individual services delivered via cooperative venture: (place an "X" in each year the services were delivered cooperatively)
A22: Library | B22: X | C22: X | D22: x | E22: x | F22: x | G22: x | H22: x | I22: x | J22: x | K22: x
A23: Dispatch | D23: x | E23: x | F23: x | G23: x | H23: x | I23: x | J23: x | K23: x
A24: Building inspections | D24: x | E24: x | F24: x | G24: x | H24: x | I24: x | J24: x | K24: x
A25: Recreation | B25: X
A26: Finance dept. consolidation
A27: Assessing | D27: x | E27: x | F27: x | G27: x | H27: x | I27: x | J27: x | K27: x
A28: Fire | D28: x | E28: x | F28: x | G28: x | H28: x | I28: x | J28: x | K28: x
A29: Police | D29: x | E29: x | F29: x | G29: x | H29: x | I29: x | J29: x | K29: x
A30: Other:
A32: Totals | B32: =COUNTA(B21:B31) -> 2 | C32: 1 | D32: 6 | E32: 6 | F32: 6 | G32: 6 | H32: 6 | I32: 6 | J32: 6 | K32: 6
A33: Economic Strength
A34: % of community with access to high speed broadband | L34: % with access (not how many residents are actively utilizing the service).
A35: Number of homes | B35: 3100 | C35: 3100 | D35: 511 | E35: 511 | F35: 511 | G35: 511 | H35: 511 | I35: 511 | J35: 511 | K35: 511
A36: Number of homes passed by highspeed internet | B36: 2850 | C36: 2850 | D36: 511 | E36: 511 | F36: 511 | G36: 511 | H36: 511 | I36: 511 | J36: 511 | K36: 511
A37: % of homes with access to high speed boradband | B37: =+B36/B35 -> 0.9193548387 | C37: 0.9193548387 | D37: 1 | E37: 1 | F37: 1 | G37: 1 | H37: =+H36/H35 -> 1 | I37: 1 | J37: 1 | K37: 1
A39: % of community age 25+ with Bachelor's Degree or higher. | L39: Report consistent with the most current census data.
A40: Population aged 25 and over | B40: 5675 | C40: 5675 | D40: 804 | E40: 804 | F40: 804 | G40: 804 | H40: 804 | I40: 804 | J40: 804 | K40: 804 | L40: Alternative: % of High school graduates going to college (data point is available from the local school district).
A41: Number with Bachelor's degree or higher | B41: 4122 | C41: 4122 | D41: 113 | E41: 113 | F41: 113 | G41: 113 | H41: 113 | I41: 113 | J41: 113 | K41: 113
A42: % of community age 25+ with bachelor's degree or higher | B42: =+B41/B40 -> 0.7263436123 | C42: 0.7263436123 | D42: 0.1405472637 | E42: 0.1405472637 | F42: 0.1405472637 | G42: 0.1405472637 | H42: =+H41/H40 -> 0.1405472637 | I42: 0.1405472637 | J42: 0.1405472637 | K42: 0.1405472637
A44: Average age of critical infrastructure (years) | L44: Buildings need not be reported.
A45: Water lines
A46: Historical cost | B46: 15000000 | C46: 15000000
A47: Accumulated depreciation | B47: 6000000 | C47: =+B47+B46/$B48 -> 6250000
A48: Average depreciable life (in years) | B48: 60 | C48: 60
A49: Average age | B49: =IF(B46>0,+B47/(B46/B48),"") -> 24 | C49: =IF(C46>0,+C47/(C46/C48),"") -> 25 | D49: =IF(D46>0,+D47/(D46/D48),"") ->  | E49: =IF(E46>0,+E47/(E46/E48),"") -> 
A50: component of the weighted average | B50: =IF(ISNUMBER(B49)=TRUE,B49*B46/B$83,"") -> 5.142857143 | C50: =IF(ISNUMBER(C49)=TRUE,C49*C46/C$83,"") -> 5 | D50: =IF(ISNUMBER(D49)=TRUE,D49*D46/D$83,"") ->  | E50: =IF(ISNUMBER(E49)=TRUE,E49*E46/E$83,"") -> 
A51: Sewer lines
A52: Historical cost | B52: 15000000 | C52: 18000000
A53: Accumulated depreciation | B53: 6000000 | C53: =+B53+B52/$B54 -> 6200000
A54: Average depreciable life (in years) | B54: 75 | C54: 75
A55: Average age | B55: =IF(B52>0,+B53/(B52/B54),"") -> 30 | C55: =IF(C52>0,+C53/(C52/C54),"") -> 25.83333333 | D55: =IF(D52>0,+D53/(D52/D54),"") ->  | E55: =IF(E52>0,+E53/(E52/E54),"") -> 
A56: component of the weighted average | B56: =IF(ISNUMBER(B55)=TRUE,B55*B52/B$83,"") -> 6.428571429 | C56: =IF(ISNUMBER(C55)=TRUE,C55*C52/C$83,"") -> 6.2 | D56: =IF(ISNUMBER(D55)=TRUE,D55*D52/D$83,"") ->  | E56: =IF(ISNUMBER(E55)=TRUE,E55*E52/E$83,"") -> 
A57: Roads
A58: Historical cost | B58: 30000000 | C58: 32000000
A59: Accumulated depreciation | B59: 18000000 | C59: =+B59+B58/$B60 -> 19500000
A60: Average depreciable life (in years) | B60: 20 | C60: 20
A61: Average age | B61: =IF(B58>0,+B59/(B58/B60),"") -> 12 | C61: =IF(C58>0,+C59/(C58/C60),"") -> 12.1875 | D61: =IF(D58>0,+D59/(D58/D60),"") ->  | E61: =IF(E58>0,+E59/(E58/E60),"") -> 
A62: component of the weighted average | B62: =IF(ISNUMBER(B61)=TRUE,B61*B58/B$83,"") -> 5.142857143 | C62: =IF(ISNUMBER(C61)=TRUE,C61*C58/C$83,"") -> 5.2 | D62: =IF(ISNUMBER(D61)=TRUE,D61*D58/D$83,"") ->  | E62: =IF(ISNUMBER(E61)=TRUE,E61*E58/E$83,"") -> 
A63: Storm drains
A64: Historical cost | B64: 10000000 | C64: 10000000
A65: Accumulated depreciation | B65: 2000000 | C65: =+B65+B64/$B66 -> 2133333.333
A66: Average depreciable life (in years) | B66: 75 | C66: =+B66 -> 75
A67: Average age | B67: =IF(B64>0,+B65/(B64/B66),"") -> 15 | C67: =IF(C64>0,+C65/(C64/C66),"") -> 16 | D67: =IF(D64>0,+D65/(D64/D66),"") ->  | E67: =IF(E64>0,+E65/(E64/E66),"") -> 
A68: component of the weighted average | B68: =IF(ISNUMBER(B67)=TRUE,B67*B64/B$83,"") -> 2.142857143 | C68: =IF(ISNUMBER(C67)=TRUE,C67*C64/C$83,"") -> 2.133333333 | D68: =IF(ISNUMBER(D67)=TRUE,D67*D64/D$83,"") ->  | E68: =IF(ISNUMBER(E67)=TRUE,E67*E64/E$83,"") -> 
A70: Historical cost
A71: Accumulated depreciation
A72: Average depreciable life (in years)
A73: Average age | B73: =IF(B70>0,+B71/(B70/B72),"") ->  | C73: =IF(C70>0,+C71/(C70/C72),"") ->  | D73: =IF(D70>0,+D71/(D70/D72),"") ->  | E73: =IF(E70>0,+E71/(E70/E72),"") -> 
A74: component of the weighted average | B74: =IF(ISNUMBER(B73)=TRUE,B73*B70/B$83,"") ->  | C74: =IF(ISNUMBER(C73)=TRUE,C73*C70/C$83,"") ->  | D74: =IF(ISNUMBER(D73)=TRUE,D73*D70/D$83,"") ->  | E74: =IF(ISNUMBER(E73)=TRUE,E73*E70/E$83,"") -> 
A76: Historical cost
A77: Accumulated depreciation
A78: Average depreciable life (in years)
A79: Average age | B79: =IF(B76>0,+B77/(B76/B78),"") ->  | C79: =IF(C76>0,+C77/(C76/C78),"") ->  | D79: =IF(D76>0,+D77/(D76/D78),"") ->  | E79: =IF(E76>0,+E77/(E76/E78),"") -> 
A80: component of the weighted average | B80: =IF(ISNUMBER(B79)=TRUE,B79*B76/B$83,"") ->  | C80: =IF(ISNUMBER(C79)=TRUE,C79*C76/C$83,"") ->  | D80: =IF(ISNUMBER(D79)=TRUE,D79*D76/D$83,"") ->  | E80: =IF(ISNUMBER(E79)=TRUE,E79*E76/E$83,"") -> 
A82: Weighted average:
A83: Total cost of critical infrastructure | B83: =SUMIF($A$44:$A$82,"Historical cost",B44:B82) -> 70000000 | C83: =SUMIF($A$44:$A$82,"Historical cost",C44:C82) -> 75000000 | D83: =SUMIF($A$44:$A$82,"Historical cost",D44:D82) -> 0 | E83: =SUMIF($A$44:$A$82,"Historical cost",E44:E82) -> 0
A84: Average age of critical infrastructure | B84: =SUMIF($A$44:$A$82,$A$50,B44:B82) -> 18.85714286 | C84: =SUMIF($A$44:$A$82,$A$50,C44:C82) -> 18.53333333 | D84: =SUMIF($A$44:$A$82,$A$50,D44:D82) -> 0 | E84: =SUMIF($A$44:$A$82,$A$50,E44:E82) -> 0
A86: Public Safety
A87: Violent crimes per thousand | L87: Report consistent with the Michigan Incident Crime Reporting guidelines
A88: Violent crimes | B88: 120 | C88: 125 | D88: 6 | E88: 2 | F88: 2 | G88: 3 | H88: 4 | I88: 0 | J88: 3 | K88: 1 | L88: 2010 and 2011 from roger vandermolen via micr
A89: Violent crimes per thousand | B89: =+B88/(B$2/1000) -> 16 | C89: 16.89189189 | D89: 4.528301887 | E89: 1.509433962 | F89: 1.509433962 | G89: 2.264150943 | H89: 3.018867925 | I89: 0 | J89: 2.264150943 | K89: 0.7547169811
A91: Property crimes per thousand | L91: Report consistent with the Michigan Incident Crime Reporting guidelines
A92: Property crimes | B92: 420 | C92: 425 | D92: 26 | E92: 40 | F92: 18 | G92: 16 | H92: 16 | I92: 14 | J92: 5 | K92: 6 | L92: 2010 and 2011 from roger vandermolen via micr
A93: Property crimes per thousand | B93: =+B92/(B$2/1000) -> 56 | C93: 57.43243243 | D93: 19.62264151 | E93: 30.18867925 | F93: 13.58490566 | G93: 12.0754717 | H93: 12.0754717 | I93: 10.56603774 | J93: 3.773584906 | K93: 4.528301887
A95: Traffic injuries or fatalities | L95: Report from the UD 10. The information on the UD10 does not distinguish between serious injury and minor injury
A96: Traffic incidents form the UD - 10 | B96: 850 | C96: 875 | D96: 7 | E96: 9 | F96: 8 | G96: 7 | H96: 7 | I96: 7 | J96: 10 | K96: 3 | L96: 2009 and 2010 from roger vandermolen
A98: Quality of Life
A99: Miles of sidewalks and non-motorized paths/trails as a factor of total miles of local/major road streets | L99: Utilize the most recent audited act 51 reports as the source data.
A100: Miles of sidewalks and non-motorized paths/trails | B100: 7.5 | C100: 8.5 | D100: 9 | E100: 9 | F100: 9 | G100: 9 | H100: =7.8+2.55 -> 10.35 | I100: =7.8+2.55 -> 10.35 | J100: =7.8+2.55 -> 10.35 | K100: 10.35
A101: Total miles of local/major road streets | B101: 35 | C101: 35 | D101: 7.43 | E101: 7.43 | F101: 7.43 | G101: 7.43 | H101: 7.43 | I101: 7.43 | J101: 7.43 | K101: 7.43
B102: =+B100/B101 -> 0.2142857143 | C102: 0.2428571429 | D102: 1.211305518 | E102: 1.211305518 | F102: 1.211305518 | G102: 1.211305518 | H102: 1.393001346 | I102: 1.393001346 | J102: 1.393001346 | K102: 1.393001346
A104: Percent of GF Expenditures Committed to Arts, Culture and Recreation | L104: Utilize the most recent audited financial statements as the source data.
A105: Arts, recreation & culture expenditures | B105: 225000 | C105: 222000 | D105: 55429 | E105: 31420 | F105: 42713 | G105: 48424 | H105: 42565 | I105: 42930 | J105: 55349 | K105: 52928
B106: =+B105/B5 -> 0.09 | C106: 0.08538461538 | D106: 0.07110292986 | E106: 0.02844988854 | F106: 0.05670953018 | G106: 0.05891707152 | H106: 0.05709366027 | I106: 0.05529879123 | J106: 0.07133623495 | K106: 0.07500719206
A108: Acres of park per thousand residents | L108: Report the number of acres of total parkland, developed and undeveloped, and utilize the most recent census or other recognized population estimate such as Semcog.
A109: Acres of parks | B109: 18 | C109: 18 | D109: 81.5 | E109: 81.5 | F109: 81.5 | G109: 81.5 | H109: 81.5 | I109: 81.5 | J109: 81.5 | K109: 81.5
B110: =+B109/(B$2/1000) -> 2.4 | C110: 2.432432432 | D110: 61.50943396 | E110: 61.50943396 | F110: 61.50943396 | G110: 61.50943396 | H110: =+H109/(H$2/1000) -> 61.50943396 | I110: 61.50943396 | J110: 61.50943396 | K110: 61.50943396
A112: Percent of community being provided with curbside recycling | L112: What percent of a community has access to, not necessarily utilizing, curbside recycling
A113: Population where curbside recycling is offered | B113: 7150 | C113: 7150 | D113: 1325 | E113: 1325 | F113: 1325 | G113: 1325 | H113: 1325 | I113: 1325 | J113: 1325 | K113: 1325
B114: =+B113/B2 -> 0.9533333333 | C114: 0.9662162162 | D114: 1 | E114: 1 | F114: 1 | G114: 1 | H114: 1 | I114: 1 | J114: 1 | K114: 1
L117: Communities may report other measures for each category that are unique or important to their community
L119: All reported data may be footnoted to explain the reported scores
L121: Data should be updated at least annually, but communities are encouraged to update the dashboards more frequently.

Sheet Sheet1
